{"text_format":"1","workbook":"xlsx","n_sheets":3,"sheets":["Лист1","январь вх","Справочники"],"not_rendered":{"charts":0,"images":0,"macros":1,"external_links":1,"defined_names":12,"comments":0,"pivot_tables":0},"unopened":[],"bounds":{"document_bytes":16777216,"sheet_cells":100000,"rows_first":2000,"rows_last":500,"rows_between":2000,"halvings":0,"cell_chars":16384,"cell_head_chars":4096},"cells_cut":0,"cells_raw":0,"read":"whole","date_system":"1900"}

{"sheet":"Лист1","index":0,"n_rows":0,"n_cols":0,"rows_kept":0,"cut":false,"hidden":false,"merged":[]}

{"sheet":"январь вх","index":1,"n_rows":17,"n_cols":40,"rows_kept":17,"cut":false,"hidden":false,"merged":[[7,21,7,26],[7,28,7,29],[7,32,8,32],[1,12,1,14],[7,3,7,4],[7,6,7,16],[7,17,7,20],[3,3,3,6]]}
[]
[]
[]
[null,null,null,"Входящие январь"]
[]
[]
[]
[null,"№ п/п","Порядковый номер","Входящий номер и дата приема документов",null,"Повторное поступление","Наименование уства или муниципального акта",null,null,null,null,null,null,null,null,null,null,"Поступившие документы",null,null,null,"Заявитель",null,null,null,null,null,"Документы принял","Принятое решение",null,"Исполнитель",null,"Контрольный срок (заполнятелся автоматически)",null,null,null,null,null,"повторно","возврат документов"]
[null,null,"сквозной","вх. номер","дата",null,"решения","цифра","сессии","от","дата","№ док-та","Наименование МПА","Вид муниципального образования","Район","Населенный пункт","Наименование органа МСУ","Наименование документов","на","кол-во","л","Должность","Наименование органа МСУ","ФИО","уведомление","номер уведомления","дата","ФИО эксперта","вид принятого решения","дата","ФИО эксперта исполнителья",null,null,null,"повторно","возврат документов"]
[null,1,1,null,null,null,{"$f":"IF(ISBLANK(Q10),0,VLOOKUP(Q10,Справочники!$G$7:$K$27,5,FALSE))","v":0},null,{"$f":"IF(ISBLANK(Q10),0,VLOOKUP(Q10,Справочники!$G$7:$O$27,9,FALSE))","v":0},{"$f":"IF(ISBLANK(Q10),0,VLOOKUP(Q10,Справочники!$G$7:$L$27,6,FALSE))","v":0},null,null,null,null,null,null,null,null,{"$f":"IF(ISBLANK(Q10),0,VLOOKUP(Q10,Справочники!$G$7:$M$27,7,FALSE))","v":0},null,{"$f":"IF(ISBLANK(Q10),0,VLOOKUP(Q10,Справочники!$G$7:$N$27,8,FALSE))","v":0},null,{"$f":"IF(ISBLANK(Q10),0,VLOOKUP(Q10,Справочники!$G$7:$G$27,1,FALSE))","v":0},null,null,null,null,null,null,null,null,null,{"$f":"IF($AC10=\"\",IF($K10=\"\",\"\",IF(TODAY()-$K10>25,\"нарушение сроков\",\"Нарушение по дате нет\")),\"сроки не нарушены\")","v":""},null,{"$f":"SUM($F10=$AM$8,AI9)","v":0},{"$f":"SUM($AC10=$AN$8,AJ9)","v":0}]
[null,2,null,null,null,null,{"$f":"IF(ISBLANK(Q11),0,VLOOKUP(Q11,Справочники!$G$7:$K$27,5,FALSE))","v":0},null,{"$f":"IF(ISBLANK(Q11),0,VLOOKUP(Q11,Справочники!$G$7:$O$27,9,FALSE))","v":0},{"$f":"IF(ISBLANK(Q11),0,VLOOKUP(Q11,Справочники!$G$7:$L$27,6,FALSE))","v":0},null,null,null,null,null,null,null,null,{"$f":"IF(ISBLANK(Q11),0,VLOOKUP(Q11,Справочники!$G$7:$M$27,7,FALSE))","v":0},null,{"$f":"IF(ISBLANK(Q11),0,VLOOKUP(Q11,Справочники!$G$7:$N$27,8,FALSE))","v":0},null,{"$f":"IF(ISBLANK(Q11),0,VLOOKUP(Q11,Справочники!$G$7:$G$27,1,FALSE))","v":0},null,null,null,null,null,null,null,null,null,{"$f":"IF($AC11=\"\",IF($K11=\"\",\"\",IF(TODAY()-$K11>25,\"нарушение сроков\",\"Нарушение по дате нет\")),\"сроки не нарушены\")","v":""},null,{"$f":"SUM($F11=$AM$8,AI10)","v":0},{"$f":"SUM($AC11=$AN$8,AJ10)","v":0}]
[null,3,null,null,null,null,{"$f":"IF(ISBLANK(Q12),0,VLOOKUP(Q12,Справочники!$G$7:$K$27,5,FALSE))","v":0},null,{"$f":"IF(ISBLANK(Q12),0,VLOOKUP(Q12,Справочники!$G$7:$O$27,9,FALSE))","v":0},{"$f":"IF(ISBLANK(Q12),0,VLOOKUP(Q12,Справочники!$G$7:$L$27,6,FALSE))","v":0},null,null,null,null,null,null,null,null,{"$f":"IF(ISBLANK(Q12),0,VLOOKUP(Q12,Справочники!$G$7:$M$27,7,FALSE))","v":0},null,{"$f":"IF(ISBLANK(Q12),0,VLOOKUP(Q12,Справочники!$G$7:$N$27,8,FALSE))","v":0},null,{"$f":"IF(ISBLANK(Q12),0,VLOOKUP(Q12,Справочники!$G$7:$G$27,1,FALSE))","v":0},null,null,null,null,null,null,null,null,null,{"$f":"IF($AC12=\"\",IF($K12=\"\",\"\",IF(TODAY()-$K12>25,\"нарушение сроков\",\"Нарушение по дате нет\")),\"сроки не нарушены\")","v":""},null,{"$f":"SUM($F12=$AM$8,AI11)","v":0},{"$f":"SUM($AC12=$AN$8,AJ11)","v":0}]
[null,4,null,null,null,null,{"$f":"IF(ISBLANK(Q13),0,VLOOKUP(Q13,Справочники!$G$7:$K$27,5,FALSE))","v":0},null,{"$f":"IF(ISBLANK(Q13),0,VLOOKUP(Q13,Справочники!$G$7:$O$27,9,FALSE))","v":0},{"$f":"IF(ISBLANK(Q13),0,VLOOKUP(Q13,Справочники!$G$7:$L$27,6,FALSE))","v":0},null,null,null,null,null,null,null,null,{"$f":"IF(ISBLANK(Q13),0,VLOOKUP(Q13,Справочники!$G$7:$M$27,7,FALSE))","v":0},null,{"$f":"IF(ISBLANK(Q13),0,VLOOKUP(Q13,Справочники!$G$7:$N$27,8,FALSE))","v":0},null,{"$f":"IF(ISBLANK(Q13),0,VLOOKUP(Q13,Справочники!$G$7:$G$27,1,FALSE))","v":0},null,null,null,null,null,null,null,null,null,{"$f":"IF($AC13=\"\",IF($K13=\"\",\"\",IF(TODAY()-$K13>25,\"нарушение сроков\",\"Нарушение по дате нет\")),\"сроки не нарушены\")","v":""},null,{"$f":"SUM($F13=$AM$8,AI12)","v":0},0]
[null,5,null,null,null,null,{"$f":"IF(ISBLANK(Q14),0,VLOOKUP(Q14,Справочники!$G$7:$K$27,5,FALSE))","v":0},null,{"$f":"IF(ISBLANK(Q14),0,VLOOKUP(Q14,Справочники!$G$7:$O$27,9,FALSE))","v":0},{"$f":"IF(ISBLANK(Q14),0,VLOOKUP(Q14,Справочники!$G$7:$L$27,6,FALSE))","v":0},null,null,null,null,null,null,null,null,{"$f":"IF(ISBLANK(Q14),0,VLOOKUP(Q14,Справочники!$G$7:$M$27,7,FALSE))","v":0},null,{"$f":"IF(ISBLANK(Q14),0,VLOOKUP(Q14,Справочники!$G$7:$N$27,8,FALSE))","v":0},null,{"$f":"IF(ISBLANK(Q14),0,VLOOKUP(Q14,Справочники!$G$7:$G$27,1,FALSE))","v":0},null,null,null,null,null,null,null,null,null,{"$f":"IF($AC14=\"\",IF($K14=\"\",\"\",IF(TODAY()-$K14>25,\"нарушение сроков\",\"Нарушение по дате нет\")),\"сроки не нарушены\")","v":""},null,{"$f":"SUM($F14=$AM$8,AI13)","v":0},0]
[null,6,null,null,null,null,{"$f":"IF(ISBLANK(Q15),0,VLOOKUP(Q15,Справочники!$G$7:$K$27,5,FALSE))","v":0},null,{"$f":"IF(ISBLANK(Q15),0,VLOOKUP(Q15,Справочники!$G$7:$O$27,9,FALSE))","v":0},{"$f":"IF(ISBLANK(Q15),0,VLOOKUP(Q15,Справочники!$G$7:$L$27,6,FALSE))","v":0},null,null,null,null,null,null,null,null,{"$f":"IF(ISBLANK(Q15),0,VLOOKUP(Q15,Справочники!$G$7:$M$27,7,FALSE))","v":0},null,{"$f":"IF(ISBLANK(Q15),0,VLOOKUP(Q15,Справочники!$G$7:$N$27,8,FALSE))","v":0},null,{"$f":"IF(ISBLANK(Q15),0,VLOOKUP(Q15,Справочники!$G$7:$G$27,1,FALSE))","v":0},null,null,null,null,null,null,null,null,null,{"$f":"IF($AC15=\"\",IF($K15=\"\",\"\",IF(TODAY()-$K15>25,\"нарушение сроков\",\"Нарушение по дате нет\")),\"сроки не нарушены\")","v":""},null,{"$f":"SUM($F15=$AM$8,AI14)","v":0},0]
[null,7,null,null,null,null,{"$f":"IF(ISBLANK(Q16),0,VLOOKUP(Q16,Справочники!$G$7:$K$27,5,FALSE))","v":0},null,{"$f":"IF(ISBLANK(Q16),0,VLOOKUP(Q16,Справочники!$G$7:$O$27,9,FALSE))","v":0},{"$f":"IF(ISBLANK(Q16),0,VLOOKUP(Q16,Справочники!$G$7:$L$27,6,FALSE))","v":0},null,null,null,null,null,null,null,null,{"$f":"IF(ISBLANK(Q16),0,VLOOKUP(Q16,Справочники!$G$7:$M$27,7,FALSE))","v":0},null,{"$f":"IF(ISBLANK(Q16),0,VLOOKUP(Q16,Справочники!$G$7:$N$27,8,FALSE))","v":0},null,{"$f":"IF(ISBLANK(Q16),0,VLOOKUP(Q16,Справочники!$G$7:$G$27,1,FALSE))","v":0},null,null,null,null,null,null,null,null,null,{"$f":"IF($AC16=\"\",IF($K16=\"\",\"\",IF(TODAY()-$K16>25,\"нарушение сроков\",\"Нарушение по дате нет\")),\"сроки не нарушены\")","v":""},null,{"$f":"SUM($F16=$AM$8,AI15)","v":0},0]
[null,8,null,null,null,null,{"$f":"IF(ISBLANK(Q17),0,VLOOKUP(Q17,Справочники!$G$7:$K$27,5,FALSE))","v":0},null,{"$f":"IF(ISBLANK(Q17),0,VLOOKUP(Q17,Справочники!$G$7:$O$27,9,FALSE))","v":0},{"$f":"IF(ISBLANK(Q17),0,VLOOKUP(Q17,Справочники!$G$7:$L$27,6,FALSE))","v":0},null,null,null,null,null,null,null,null,{"$f":"IF(ISBLANK(Q17),0,VLOOKUP(Q17,Справочники!$G$7:$M$27,7,FALSE))","v":0},null,{"$f":"IF(ISBLANK(Q17),0,VLOOKUP(Q17,Справочники!$G$7:$N$27,8,FALSE))","v":0},null,{"$f":"IF(ISBLANK(Q17),0,VLOOKUP(Q17,Справочники!$G$7:$G$27,1,FALSE))","v":0},null,null,null,null,null,null,null,null,null,{"$f":"IF($AC17=\"\",IF($K17=\"\",\"\",IF(TODAY()-$K17>25,\"нарушение сроков\",\"Нарушение по дате нет\")),\"сроки не нарушены\")","v":""},null,{"$f":"SUM($F17=$AM$8,AI16)","v":0},0]

{"sheet":"Справочники","index":2,"n_rows":36,"n_cols":36,"rows_kept":36,"cut":false,"hidden":false,"merged":[]}
[]
[]
[]
[]
[]
[]
[null,null,null,"Городской округ","Новосибирский район","Бердск","города Бердск Новосибирской области","Ru 54301000","сессии  Совета депутатов","созыва","Решения ","от","на","л","сессии","созыва",{"$f":"TEXT(TODAY(),\"гггг\")","v":"2016"},null,null,"противоречие законодательству",null,null,"Решение сессии",null,null,"О внесении изменений в Устав",null,null,"Иванова А.С.",null,"Согласны",null,"да","снят с рассмотрения","снят с рассмотрения","возвращено без рассмотрения"]
[null,null,null,"Городской округ","Искитимский район","Искитим","города Искитим Новосибирской области","Ru 54302000","сессии  Совета депутатов","созыва","Решения ","от","на","л","сессии","созыва",{"$f":"TEXT(TODAY(),\"гггг\")","v":"2016"},null,null,"нарушение порядка принятия",null,null,"Протокол сессии",null,null,"О внесении изменений и дополнений в Устав",null,null,"Решетникова И.Л.",null,"Не согласны",null,null,"не согласны"]
[null,null,null,"Городской округ","Новосибирский район","Новосибирск","города Новосибирск Новосибирской области","Ru 54303000","сессии  Совета депутатов","созыва","Решения ","от","на","л","сессии","созыва","2016",null,null,"коррупциогенный фактор",null,null,"Протокол публичных слушаний",null,null,"О принятии Устава",null,null,"Шалак А.В.",null,"Частично согласны"]
[null,null,null,"Городской округ","Новосибирский район","Обь","города Оби Новосибирской области","Ru 54304000","сессии  Совета депутатов","созыва","Решения ","от","на","л","сессии","созыва","2016",null,null,null,null,null,"Справка об опубликовании проекта",null,null,null,null,null,"Шпаков Л.С.",null,"Согласны, внесены изменения"]
[null,null,null,"Городской округ","Новосибирский район","Кольцово","рабочего поселка Кольцово Новосибирского района Новосибирской области","Ru 54305000","сессии  Совета депутатов","созыва","Решения ","от","на","л","сессии","созыва","2016",null,null,null,null,null,"Информация об опубликовании проекта",null,null,null,null,null,"Волкова А.С.",null,"Дополнен"]
[null,null,null,"Муниципальный район","Баганский район","Баган","Баганского района Новосибирской области","Ru 54501000","сессии  Совета депутатов","созыва","Решения ","от","на","л","сессии","созыва","2016",null,null,null,null,null,"Сведения об опубликовании проекта",null,null,null,null,null,"Тростянская М.С.",null,"Протест прокурора"]
[null,null,null,"Муниципальный район","Барабинский район","Барабинск","Барабинского района Новосибирской области","Ru 54502000","сессии  Совета депутатов","созыва","Решения ","от","на","л","сессии","созыва","2016",null,null,null,null,null,"Информация об опубликовании результатов публичных слушаний",null,null,null,null,null,"Шатрова Е.Ю.",null,"Заявление в суд"]
[null,null,null,"Муниципальный район","Болотнинский район","Болотное","Болотнинского района Новосибирской области","Ru 54503000","сессии  Совета депутатов","созыва","Решения ","от","на","л","сессии","созыва","2016",null,null,null,null,null,"Сведения об опубликовании результатов публичных слушаний"]
[null,null,null,"Муниципальный район","Венгеровский район","Венгерово","Венгеровского района Новосибирской области","Ru 54504000","сессии  Совета депутатов","созыва","Решения ","от","на","л","сессии","созыва","2016",null,null,null,null,null,"Рекомендации публичных слушаний"]
[null,null,null,"Городское поселение","Черепановский район","Черепаново","города Черепаново Черепановского района Новосибирской области","Ru 54528103","сессии  Совета депутатов","созыва","Решения ","от","на","л","сессии","созыва","2016",null,null,null,null,null,"Устав"]
[null,null,null,"Городское поселение","Черепановский район","Дорогино","рабочего поселка Дорогино Черепановского района Новосибирской области","Ru 54528101","сессии  Совета депутатов","созыва","Решения ","от","на","л","сессии","созыва","2016",null,null,null,null,null,"Устав в актуальной редакции"]
[null,null,null,"Городское поселение","Черепановский район","Посевная","рабочего поселка Посевная Черепановского района Новосибирской области","Ru 54528102","сессии  Совета депутатов","созыва","Решения ","от","на","л","сессии","созыва","2016",null,null,null,null,null,"Положения Устава в актуальной редакции"]
[null,null,null,"Городское поселение","Чистоозерный район","Чистоозерное","рабочего поселка Чистоозерное Чистоозерного района Новосибирской области","Ru 54529101","сессии  Совета депутатов","созыва","Решения ","от","на","л","сессии","созыва","2016",null,null,null,null,null,"Доверенность"]
[null,null,null,"Городское поселение","Чулымский район","Чулым","города Чулым Чулымского района Новосибирской области","Ru 54530101","сессии  Совета депутатов","созыва","Решения ","от","на","л","сессии","созыва","2016",null,null,null,null,null,"Электронный носитель"]
[null,null,null,"Сельское поселение","Баганский район","Андреевка","Андреевского сельсовета Баганского района Новосибирской области","Ru 54501301","сессии  Совета депутатов","созыва","Решения ","от","на","л","сессии","созыва","2016",null,null,null,null,null,"Заявление о государственной регистра"]
[null,null,null,"Сельское поселение","Баганский район","Баган","Баганского сельсовета Баганского района Новосибирской области","Ru 54501302","сессии  Совета депутатов","созыва","Решения ","от","на","л","сессии","созыва","2016",null,null,null,null,null,"Справка об обнародовании"]
[null,null,null,"Сельское поселение","Баганский район","Ивановская","Ивановского сельсовета Баганского района Новосибирской области","Ru 54501303","сессии  Совета депутатов","созыва","Решения ","от","на","л","сессии","созыва","2016",null,null,null,null,null,"Свидетельство"]
[null,null,null,"Сельское поселение","Баганский район","Казанск","Казанского сельсовета Баганского района Новосибирской области","Ru 54501304","сессии  Совета депутатов","созыва","Решения ","от","на","л","сессии","созыва","2016",null,null,null,null,null,"Выписка из протокола сессии"]
[null,null,null,"Городской округ с внутригородским делением",null,null,null,null,null,null,null,null,null,null,null,null,null,null,null,null,null,null,"Изменения в Устав"]
[null,null,null,"Внутригородские районы",null,null,null,null,null,null,null,null,null,null,null,null,null,null,null,null,null,null,"Заключение публичных слушаний"]
[null,null,null,"Внутригородсккие территории города федерального значения",null,null,null,null,null,null,null,null,null,null,null,null,null,null,null,null,null,null,"Постановление о публичных слушаниях"]
[null,null,null,null,null,null,null,null,null,null,null,null,null,null,null,null,null,null,null,null,null,null,"Решение о проведении публичных слушаний"]
[null,null,null,null,null,null,null,null,null,null,null,null,null,null,null,null,null,null,null,null,null,null,"Муниципальный правовой акт"]
[null,null,null,null,null,null,null,null,null,null,null,null,null,null,null,null,null,null,null,null,null,null,"Постановление главы "]
[null,null,null,null,null,null,null,null,null,null,null,null,null,null,null,null,null,null,null,null,null,null,"Справка"]
[null,null,null,null,null,null,null,null,null,null,null,null,null,null,null,null,null,null,null,null,null,null,"Выписка из протокола публичных слушаний"]
[null,null,null,null,null,null,null,null,null,null,null,null,null,null,null,null,null,null,null,null,null,null,"Итоги публичных слушаний"]
[null,null,null,null,null,null,null,null,null,null,null,null,null,null,null,null,null,null,null,null,null,null,"Протокол схода граждан"]
[null,null,null,null,null,null,null,null,null,null,null,null,null,null,null,null,null,null,null,null,null,null,"Копия устава"]
[null,null,null,null,null,null,null,null,null,null,null,null,null,null,null,null,null,null,null,null,null,null,"Результаты публичных слушаний"]